[Event "Turkish Youth Championship 2024"]
[Site "Samsun"]
[Date "2024.05.18"]
[Round "1"]
[White "Cilek, Bora"]
[Black "Kukurt, Ipek"]
[Result "1-0"]
[ECO "C28"]
[WhiteElo "2246"]
[BlackElo "1431"]
[Annotator "RC"]
[PlyCount "83"]
[EventDate "2024.05.18"]
[EventType "swiss"]
[EventCountry "TUR"]
[SourceTitle "playchess.com"]
[Source "ChessBase"]
[SourceQuality "1"]
[TimeControl "5400+30"]

1. e4 {[%emt 0:01:00]} e5 {[%emt 0:01:00]} 2. Nc3 {[%emt 0:00:30]} Nc6 {[%emt 0:00:30]} 3. Bc4 {[%emt 0:00:30]} Bc5 {[%emt 0:00:00]} 4. d3 {[%emt 0:00:30]} h6 {[%emt 0:02:00]} 5. Nge2 {[%emt 0:01:30]} d6 {[%emt 0:00:30]} 6. O-O {[%emt 0:03:30]} Nf6 {[%emt 0:01:30]} 7. h3 {[%emt 0:02:30]} O-O {[%emt 0:00:30]} 8. Kh1 {[%emt 0:01:30]} Bg4 {[%emt 0:40:30]} 9. f3 {[%emt 0:05:30]} Be6 {[%emt 0:06:30]} 10. Bb3 {[%emt 0:06:30]} Qd7 {[%emt 0:02:30]} 11. Qe1 {[%emt 0:03:30]} Bxh3 {[%emt 0:15:30]} 12. Qg3 {[%emt 0:00:30]} Be6 {[%emt 0:00:30]} 13. Bxh6 {[%emt 0:01:30]} Nh5 {[%emt 0:02:30]} 14. Qg5 {[%emt 0:00:30]} Bxb3 {[%emt 0:02:30]} 15. axb3 {[%emt 0:01:30]} Qe6 {[%emt 0:03:55]} 16. Qxh5 {[%emt 0:00:30]} Qxh6 {[%emt 0:03:29]} 17. Qxh6 {[%emt 0:00:30]} gxh6 {[%emt 0:00:11]} 18. Nd5 {[%emt 0:00:00]} Rac8 {[%emt 0:02:35]} 19. g4 {[%emt 0:00:00]} a6 {[%emt 0:02:04]} 20. Kg2 {[%emt 0:00:30]} f6 {[%emt 0:01:57]} 21. Rh1 {[%emt 0:00:00]} Kg7 {[%emt 0:01:23]} 22. Rh5 {[%emt 0:00:00]} Rf7 {[%emt 0:00:41]} 23. Rah1 {[%emt 0:01:30]} Rh8 {[%emt 0:00:30]} 24. c3 {[%emt 0:00:30]} Nd8 {[%emt 0:04:38]} 25. Ng3 {[%emt 0:00:00]} c6 {[%emt 0:02:27]} 26. Nf5+ {[%emt 0:00:00]} Kf8 {[%emt 0:00:15]} 27. Rxh6 {[%emt 0:00:30]} Rxh6 {[%emt 0:00:58]} 28. Rxh6 {[%emt 0:00:00]} Kg8 {[%emt 0:01:46]} 29. Nxf6+ {[%emt 0:00:00]} Rxf6 {[%emt 0:00:14]} 30. Rxf6 {[%emt 0:00:30]} Nf7 {[%emt 0:00:17]} 31. g5 {[%emt 0:00:00]} d5 {[%emt 0:00:27]} 32. Nh6+ {[%emt 0:00:00]} Nxh6 {[%emt 0:00:21]} 33. Rxh6 {[%emt 0:00:30]} d4 {[%emt 0:00:46]} 34. Kh3 {[%emt 0:00:30]} Ba3 {[%emt 0:01:16]} 35. bxa3 {[%emt 0:00:00]} dxc3 {[%emt 0:00:07]} 36. Kg4 {[%emt 0:00:00]} c2 {[%emt 0:00:00]} 37. Rh1 {[%emt 0:00:30]} b5 {[%emt 0:00:41]} 38. Kf5 {[%emt 0:00:00]} c5 {[%emt 0:00:00]} 39. g6 {[%emt 0:00:00]} a5 {[%emt 0:00:29]} 40. Kf6 {[%emt 0:00:00]} a4 {[%emt 0:01:16]} 41. g7 {[%emt 0:00:00]} c1=Q {[%emt 0:00:00]} 42. Rh8# {[%emt 0:00:30]} 1-0

[Event "Turkish Youth Championship 2024"]
[Site "Samsun"]
[Date "2024.05.18"]
[Round "1"]
[White "Yilmaz, Kerem Tuna"]
[Black "Altunay, Kerem Kaan"]
[Result "1-0"]
[ECO "C65"]
[WhiteElo "2039"]
[BlackElo "1459"]
[Annotator "RC"]
[PlyCount "22"]
[EventDate "2024.05.18"]
[EventType "swiss"]
[EventCountry "TUR"]
[SourceTitle "playchess.com"]
[Source "ChessBase"]
[SourceQuality "1"]
[TimeControl "5400+30"]

1. e4 {[%emt 0:01:00]} e5 {[%emt 0:01:00]} 2. Nf3 {[%emt 0:00:30]} Nc6 {[%emt 0:00:00]} 3. Bb5 {[%emt 0:00:00]} Bc5 {[%emt 0:00:00]} 4. c3 {[%emt 0:02:00]} d6 {[%emt 0:01:30]} 5. O-O {[%emt 0:06:30]} Nf6 {[%emt 0:01:30]} 6. d4 {[%emt 0:00:30]} exd4 {[%emt 0:00:30]} 7. cxd4 {[%emt 0:00:00]} Bb6 {[%emt 0:02:30]} 8. d5 {[%emt 0:00:00]} a6 {[%emt 0:00:30]} 9. Ba4 {[%emt 0:00:30]} O-O {[%emt 0:02:30]} 10. dxc6 {[%emt 0:00:00]} Nxe4 {[%emt 0:00:00]} 11. Qd5 {[%emt 0:02:00]} Nf6 {[%emt 0:03:00]} 1-0

[Event "Turkish Youth Championship 2024"]
[Site "Samsun"]
[Date "2024.05.18"]
[Round "1"]
[White "Atis, Hasan"]
[Black "Celebi, Tugra"]
[Result "1-0"]
[ECO "C70"]
[WhiteElo "2014"]
[BlackElo "1441"]
[Annotator "RC"]
[PlyCount "67"]
[EventDate "2024.05.18"]
[EventType "swiss"]
[EventCountry "TUR"]
[SourceTitle "playchess.com"]
[Source "ChessBase"]
[SourceQuality "1"]
[TimeControl "5400+30"]

1. e4 {[%emt 0:01:00]} e5 {[%emt 0:01:00]} 2. Nf3 {[%emt 0:00:30]} Nc6 {[%emt 0:00:00]} 3. Bb5 {[%emt 0:00:00]} a6 {[%emt 0:00:00]} 4. Ba4 {[%emt 0:00:00]} Bc5 {[%emt 0:01:30]} 5. O-O {[%emt 0:00:00]} d6 {[%emt 0:00:30]} 6. c3 {[%emt 0:00:00]} b5 {[%emt 0:02:30]} 7. Bb3 {[%emt 0:00:30]} Bb6 {[%emt 0:00:30]} 8. a4 {[%emt 0:00:30]} Bb7 {[%emt 0:00:30]} 9. d3 {[%emt 0:00:30]} h6 {[%emt 0:02:30]} 10. Qe2 {[%emt 0:02:30]} Nf6 {[%emt 0:01:30]} 11. Nbd2 {[%emt 0:00:30]} O-O {[%emt 0:00:30]} 12. Nh4 {[%emt 0:01:30]} Ne7 {[%emt 0:02:30]} 13. Qf3 {[%emt 0:03:30]} d5 {[%emt 0:01:30]} 14. Re1 {[%emt 0:00:30]} Re8 {[%emt 0:01:30]} 15. Nf1 {[%emt 0:00:30]} Qd6 {[%emt 0:08:30]} 16. Ng3 {[%emt 0:00:30]} Bc8 {[%emt 0:03:30]} 17. h3 {[%emt 0:01:30]} c6 {[%emt 0:07:30]} 18. exd5 {[%emt 0:03:30]} Nfxd5 {[%emt 0:04:30]} 19. Ne4 {[%emt 0:02:30]} Qd8 {[%emt 0:05:30]} 20. c4 {[%emt 0:03:30]} Nf4 {[%emt 0:04:30]} 21. axb5 {[%emt 0:13:30]} cxb5 {[%emt 0:03:30]} 22. Bxf4 {[%emt 0:04:30]} exf4 {[%emt 0:00:30]} 23. c5 {[%emt 0:01:30]} Ba5 {[%emt 0:06:30]} 24. Nd6 {[%emt 0:00:30]} Bxe1 {[%emt 0:01:30]} 25. Qxa8 {[%emt 0:00:30]} Bxf2+ {[%emt 0:03:30]} 26. Kxf2 {[%emt 0:00:30]} Rf8 {[%emt 0:00:00]} 27. Qe4 {[%emt 0:01:30]} Qc7 {[%emt 0:02:00]} 28. d4 {[%emt 0:00:00]} b4 {[%emt 0:00:30]} 29. Re1 {[%emt 0:00:00]} Nc6 {[%emt 0:01:30]} 30. Ng6 {[%emt 0:00:30]} Rd8 {[%emt 0:00:30]} 31. Qxc6 {[%emt 0:01:30]} Qxc6 {[%emt 0:01:30]} 32. Ne7+ {[%emt 0:00:30]} Kf8 {[%emt 0:00:30]} 33. Nxc6 {[%emt 0:00:00]} Rxd6 {[%emt 0:00:30]} 34. cxd6 {[%emt 0:00:00]} 1-0

[Event "Turkish Youth Championship 2024"]
[Site "Samsun"]
[Date "2024.05.18"]
[Round "1"]
[White "Tirpan, Ceren"]
[Black "Acikgoz, Ayse Naz"]
[Result "1-0"]
[ECO "D08"]
[WhiteElo "2004"]
[BlackElo "1414"]
[Annotator "RC"]
[PlyCount "107"]
[EventDate "2024.05.18"]
[EventType "swiss"]
[EventCountry "TUR"]
[SourceTitle "playchess.com"]
[Source "ChessBase"]
[SourceQuality "1"]
[TimeControl "5400+30"]

1. d4 {[%emt 0:01:00]} d5 {[%emt 0:01:00]} 2. c4 {[%emt 0:00:00]} e5 {[%emt 0:00:00]} 3. dxe5 {[%emt 0:01:00]} d4 {[%emt 0:01:00]} 4. Nf3 {[%emt 0:00:00]} Bb4+ {[%emt 0:01:30]} 5. Nbd2 {[%emt 0:04:00]} Nc6 {[%emt 0:09:30]} 6. a3 {[%emt 0:13:30]} Bxd2+ {[%emt 0:01:30]} 7. Bxd2 {[%emt 0:05:30]} Bg4 {[%emt 0:09:30]} 8. Qb3 {[%emt 0:08:30]} Nge7 {[%emt 0:08:30]} 9. O-O-O {[%emt 0:05:30]} a5 {[%emt 0:05:30]} 10. h3 {[%emt 0:09:30]} Bh5 {[%emt 0:07:30]} 11. Bg5 {[%emt 0:09:30]} O-O {[%emt 0:12:30]} 12. e3 {[%emt 0:09:30]} a4 {[%emt 0:10:30]} 13. Qc2 {[%emt 0:04:30]} Bg6 {[%emt 0:02:30]} 14. Bd3 {[%emt 0:00:30]} Bxd3 {[%emt 0:07:11]} 15. Rxd3 {[%emt 0:00:30]} Qe8 {[%emt 0:01:14]} 16. exd4 {[%emt 0:01:30]} Ng6 {[%emt 0:02:37]} 17. Re1 {[%emt 0:00:30]} Qd7 {[%emt 0:05:25]} 18. d5 {[%emt 0:04:30]} Nce7 {[%emt 0:03:38]} 19. e6 {[%emt 0:00:30]} Qe8 {[%emt 0:01:45]} 20. exf7+ {[%emt 0:00:30]} Qxf7 {[%emt 0:00:53]} 21. Bxe7 {[%emt 0:00:55]} Nxe7 {[%emt 0:00:17]} 22. Rde3 {[%emt 0:01:58]} Ng6 {[%emt 0:01:41]} 23. Ng5 {[%emt 0:02:54]} Qf6 {[%emt 0:01:57]} 24. Ne6 {[%emt 0:00:24]} Rf7 {[%emt 0:01:48]} 25. g3 {[%emt 0:02:52]} Re8 {[%emt 0:01:30]} 26. f4 {[%emt 0:01:03]} Rfe7 {[%emt 0:01:02]} 27. Qc3 {[%emt 0:00:51]} Qxc3+ {[%emt 0:00:21]} 28. Rxc3 {[%emt 0:00:05]} Nf8 {[%emt 0:00:41]} 29. f5 {[%emt 0:00:09]} Nd7 {[%emt 0:00:43]} 30. Rce3 {[%emt 0:02:06]} Nb6 {[%emt 0:00:26]} 31. Re4 {[%emt 0:00:22]} Nc8 {[%emt 0:00:29]} 32. Nc5 {[%emt 0:01:26]} Rxe4 {[%emt 0:00:26]} 33. Rxe4 {[%emt 0:00:07]} Rxe4 {[%emt 0:01:21]} 34. Nxe4 {[%emt 0:00:06]} b6 {[%emt 0:00:26]} 35. Kc2 {[%emt 0:00:04]} Kf7 {[%emt 0:00:10]} 36. Kc3 {[%emt 0:00:04]} Ne7 {[%emt 0:00:24]} 37. g4 {[%emt 0:00:06]} g6 {[%emt 0:00:18]} 38. Ng5+ {[%emt 0:00:38]} Kg7 {[%emt 0:00:52]} 39. Ne6+ {[%emt 0:00:06]} Kf6 {[%emt 0:00:00]} 40. fxg6 {[%emt 0:00:20]} Nxg6 {[%emt 0:00:14]} 41. Nxc7 {[%emt 0:00:49]} Nf4 {[%emt 0:00:31]} 42. Na8 {[%emt 0:03:18]} Nxh3 {[%emt 0:01:32]} 43. Nxb6 {[%emt 0:00:05]} Ng5 {[%emt 0:00:00]} 44. c5 {[%emt 0:00:09]} Ke7 {[%emt 0:00:17]} 45. Kd4 {[%emt 0:00:28]} Nf7 {[%emt 0:00:23]} 46. Nxa4 {[%emt 0:00:00]} Kd7 {[%emt 0:00:00]} 47. Nb6+ {[%emt 0:00:00]} Kc7 {[%emt 0:00:10]} 48. d6+ {[%emt 0:00:20]} Kc6 {[%emt 0:00:32]} 49. Nd5 {[%emt 0:00:05]} Nd8 {[%emt 0:00:43]} 50. Ne7+ {[%emt 0:00:06]} Kd7 {[%emt 0:00:09]} 51. Kd5 {[%emt 0:00:05]} Nf7 {[%emt 0:00:27]} 52. c6+ {[%emt 0:00:05]} Kd8 {[%emt 0:00:02]} 53. c7+ {[%emt 0:00:09]} Kd7 {[%emt 0:00:23]} 54. c8=Q# {[%emt 0:00:09]} 1-0

[Event "Turkish Youth Championship 2024"]
[Site "Samsun"]
[Date "2024.05.18"]
[Round "1"]
[White "Zerey, Demhat"]
[Black "Unlu, Mustafa Yigit"]
[Result "1-0"]
[ECO "A48"]
[WhiteElo "1986"]
[BlackElo "1409"]
[Annotator "RC"]
[PlyCount "65"]
[EventDate "2024.05.18"]
[EventType "swiss"]
[EventCountry "TUR"]
[SourceTitle "playchess.com"]
[Source "ChessBase"]
[SourceQuality "1"]
[TimeControl "5400+30"]

1. d4 {[%emt 0:01:00]} Nf6 {[%emt 0:01:00]} 2. Bf4 {[%emt 0:00:00]} g6 {[%emt 0:00:30]} 3. e3 {[%emt 0:01:00]} Bg7 {[%emt 0:00:30]} 4. Nf3 {[%emt 0:00:30]} d6 {[%emt 0:01:30]} 5. h3 {[%emt 0:00:30]} Nc6 {[%emt 0:00:30]} 6. Be2 {[%emt 0:01:30]} Bd7 {[%emt 0:06:30]} 7. O-O {[%emt 0:01:30]} O-O {[%emt 0:00:30]} 8. c4 {[%emt 0:04:30]} a6 {[%emt 0:09:30]} 9. Nc3 {[%emt 0:03:30]} Re8 {[%emt 0:03:30]} 10. d5 {[%emt 0:04:30]} Na7 {[%emt 0:01:30]} 11. a4 {[%emt 0:04:30]} Rb8 {[%emt 0:05:30]} 12. e4 {[%emt 0:02:30]} c6 {[%emt 0:03:30]} 13. e5 {[%emt 0:05:30]} Nh5 {[%emt 0:02:30]} 14. Be3 {[%emt 0:00:30]} Nc8 {[%emt 0:01:30]} 15. g4 {[%emt 0:01:30]} dxe5 {[%emt 0:00:30]} 16. gxh5 {[%emt 0:00:30]} Bxh3 {[%emt 0:00:30]} 17. Re1 {[%emt 0:01:30]} Qd7 {[%emt 0:00:30]} 18. Ng5 {[%emt 0:03:30]} Bf5 {[%emt 0:03:30]} 19. dxc6 {[%emt 0:01:30]} Qxc6 {[%emt 0:00:30]} 20. Bf3 {[%emt 0:00:30]} Qd6 {[%emt 0:03:30]} 21. c5 {[%emt 0:04:30]} Qxd1 {[%emt 0:03:30]} 22. Raxd1 {[%emt 0:00:00]} h6 {[%emt 0:00:30]} 23. Nge4 {[%emt 0:01:00]} gxh5 {[%emt 0:00:30]} 24. Bxh5 {[%emt 0:00:30]} Bxe4 {[%emt 0:00:30]} 25. Nxe4 {[%emt 0:00:30]} e6 {[%emt 0:01:30]} 26. Rd7 {[%emt 0:03:30]} Rf8 {[%emt 0:00:30]} 27. Nd6 {[%emt 0:01:30]} Nxd6 {[%emt 0:00:30]} 28. cxd6 {[%emt 0:00:30]} e4 {[%emt 0:00:00]} 29. Rc1 {[%emt 0:00:30]} Bxb2 {[%emt 0:00:00]} 30. Rcc7 {[%emt 0:00:00]} b5 {[%emt 0:00:30]} 31. axb5 {[%emt 0:01:00]} axb5 {[%emt 0:00:00]} 32. Bxf7+ {[%emt 0:00:00]} Kh8 {[%emt 0:00:00]} 33. Bxe6 {[%emt 0:00:00]} 1-0

[Event "Turkish Youth Championship 2024"]
[Site "Samsun"]
[Date "2024.05.18"]
[Round "1"]
[White "Turgut, Hakan"]
[Black "Yaldiz, Goktug Efe"]
[Result "1-0"]
[ECO "B10"]
[WhiteElo "1954"]
[BlackElo "1429"]
[Annotator "RC"]
[PlyCount "76"]
[EventDate "2024.05.18"]
[EventType "swiss"]
[EventCountry "TUR"]
[SourceTitle "playchess.com"]
[Source "ChessBase"]
[SourceQuality "1"]
[TimeControl "5400+30"]

1. e4 {[%emt 0:01:00]} c6 {[%emt 0:01:00]} 2. d3 {[%emt 0:00:00]} d5 {[%emt 0:01:30]} 3. Nd2 {[%emt 0:00:00]} dxe4 {[%emt 0:03:30]} 4. dxe4 {[%emt 0:00:30]} e5 {[%emt 0:00:30]} 5. Ngf3 {[%emt 0:00:30]} Bg4 {[%emt 0:04:30]} 6. Bc4 {[%emt 0:00:30]} Nf6 {[%emt 0:02:30]} 7. Bxf7+ {[%emt 0:00:30]} Ke7 {[%emt 0:03:30]} 8. Bc4 {[%emt 0:00:30]} Nbd7 {[%emt 0:01:30]} 9. h3 {[%emt 0:01:30]} Bh5 {[%emt 0:00:00]} 10. b3 {[%emt 0:00:00]} Qc7 {[%emt 0:00:00]} 11. Bb2 {[%emt 0:01:00]} Re8 {[%emt 0:03:30]} 12. g4 {[%emt 0:00:30]} Bg6 {[%emt 0:01:30]} 13. Qe2 {[%emt 0:07:30]} Kd8 {[%emt 0:01:30]} 14. Nh4 {[%emt 0:02:30]} Bc5 {[%emt 0:04:30]} 15. Nxg6 {[%emt 0:01:30]} hxg6 {[%emt 0:02:30]} 16. Bf7 {[%emt 0:00:30]} Ref8 {[%emt 0:00:30]} 17. Bxg6 {[%emt 0:00:30]} Rh6 {[%emt 0:02:30]} 18. Bf5 {[%emt 0:00:30]} g6 {[%emt 0:00:00]} 19. Be6 {[%emt 0:02:30]} Nh7 {[%emt 0:06:00]} 20. O-O-O {[%emt 0:03:30]} Rxf2 {[%emt 0:03:30]} 21. Qd3 {[%emt 0:00:30]} Nhf8 {[%emt 0:00:30]} 22. g5 {[%emt 0:01:30]} Rh8 {[%emt 0:06:30]} 23. Bg4 {[%emt 0:00:30]} Qd6 {[%emt 0:13:30]} 24. Qxd6 {[%emt 0:04:30]} Bxd6 {[%emt 0:00:30]} 25. Nc4 {[%emt 0:00:30]} Be7 {[%emt 0:01:30]} 26. Nxe5 {[%emt 0:05:30]} Bxg5+ {[%emt 0:00:30]} 27. Kb1 {[%emt 0:00:00]} Rh7 {[%emt 0:01:30]} 28. Bd4 {[%emt 0:03:00]} Rd2 {[%emt 0:10:30]} 29. Nf3 {[%emt 0:02:30]} Rxd1+ {[%emt 0:00:30]} 30. Rxd1 {[%emt 0:00:00]} Bf4 {[%emt 0:02:30]} 31. Bxa7 {[%emt 0:01:00]} Kc7 {[%emt 0:00:30]} 32. Bd4 {[%emt 0:01:30]} Re7 {[%emt 0:01:30]} 33. e5 {[%emt 0:03:30]} Bxe5 {[%emt 0:04:18]} 34. Nxe5 {[%emt 0:00:30]} Nxe5 {[%emt 0:00:09]} 35. Bc5 {[%emt 0:00:30]} Rf7 {[%emt 0:02:19]} 36. Bd6+ {[%emt 0:00:30]} Kb6 {[%emt 0:00:44]} 37. Bxe5 {[%emt 0:00:30]} Re7 {[%emt 0:00:00]} 38. Bd6 {[%emt 0:00:00]} Re8 {[%emt 0:00:09]} 1-0

[Event "Turkish Youth Championship 2024"]
[Site "Samsun"]
[Date "2024.05.18"]
[Round "1"]
[White "Yildiz, Fatma Sena"]
[Black "Kilic, Nurullah"]
[Result "0-1"]
[ECO "C55"]
[WhiteElo "1486"]
[BlackElo "1893"]
[Annotator "NA RC"]
[PlyCount "136"]
[EventDate "2024.05.18"]
[EventType "swiss"]
[EventCountry "TUR"]
[SourceTitle "playchess.com"]
[Source "ChessBase"]
[SourceQuality "1"]
[TimeControl "5400+30"]

1. e4 {[%emt 0:01:00]} e5 {[%emt 0:01:00]} 2. Nf3 {[%emt 0:00:30]} Nc6 {[%emt 0:00:30]} 3. Bc4 {[%emt 0:00:30]} Nf6 {[%emt 0:00:30]} 4. d3 {[%emt 0:00:30]} Be7 {[%emt 0:00:30]} 5. Nc3 {[%emt 0:00:00]} d6 {[%emt 0:00:00]} 6. h3 {[%emt 0:00:00]} h6 {[%emt 0:01:00]} 7. O-O {[%emt 0:00:00]} O-O {[%emt 0:00:30]} 8. Re1 {[%emt 0:00:00]} Kh8 {[%emt 0:00:00]} 9. d4 {[%emt 0:00:30]} exd4 {[%emt 0:00:00]} 10. Nxd4 {[%emt 0:00:30]} Ne5 {[%emt 0:00:30]} 11. Bb3 {[%emt 0:00:30]} Ng8 {[%emt 0:05:30]} 12. Bf4 {[%emt 0:02:30]} Ng6 {[%emt 0:03:30]} 13. Bg3 {[%emt 0:01:30]} Bh4 {[%emt 0:05:30]} 14. Qd3 {[%emt 0:02:30]} Bxg3 {[%emt 0:09:30]} 15. Qxg3 {[%emt 0:00:00]} N8e7 {[%emt 0:00:00]} 16. Nd5 {[%emt 0:00:00]} f5 {[%emt 0:02:00]} 17. exf5 {[%emt 0:02:30]} Bxf5 {[%emt 0:00:30]} 18. Nxe7 {[%emt 0:09:30]} Nxe7 {[%emt 0:00:00]} 19. Ne6 {[%emt 0:00:30]} Bxe6 {[%emt 0:00:00]} 20. Rxe6 {[%emt 0:00:00]} Nf5 {[%emt 0:00:30]} 21. Qc3 {[%emt 0:02:00]} Qh4 {[%emt 0:07:30]} 22. g4 {[%emt 0:02:30]} Qg5 {[%emt 0:01:30]} 23. f4 {[%emt 0:01:30]} Qxf4 {[%emt 0:00:30]} 24. gxf5 {[%emt 0:00:30]} Rxf5 {[%emt 0:00:00]} 25. Rg6 {[%emt 0:01:30]} Rg5+ {[%emt 0:02:00]} 26. Rxg5 {[%emt 0:00:30]} Qxg5+ {[%emt 0:00:30]} 27. Kh1 {[%emt 0:00:30]} Rf8 {[%emt 0:00:00]} 28. Rg1 {[%emt 0:00:30]} Qe7 {[%emt 0:00:00]} 29. Qg3 {[%emt 0:01:30]} Qe4+ {[%emt 0:01:30]} 30. Qg2 {[%emt 0:01:30]} Qe5 {[%emt 0:00:00]} 31. Qg3 {[%emt 0:00:30]} Qxb2 {[%emt 0:07:00]} 32. c3 {[%emt 0:01:30]} g5 {[%emt 0:00:30]} 33. Qd3 {[%emt 0:00:30]} Qf2 {[%emt 0:02:30]} 34. Qd4+ {[%emt 0:00:30]} Qxd4 {[%emt 0:00:30]} 35. cxd4 {[%emt 0:00:30]} Rf4 {[%emt 0:00:00]} 36. Re1 {[%emt 0:00:30]} Rxd4 {[%emt 0:01:00]} 37. Re8+ {[%emt 0:00:30]} Kg7 {[%emt 0:00:30]} 38. Re7+ {[%emt 0:00:00]} Kf6 {[%emt 0:00:00]} 39. Rxc7 {[%emt 0:00:00]} Rb4 {[%emt 0:00:00]} 40. Rh7 {[%emt 0:00:30]} Ke5 {[%emt 0:06:30]} 41. Rxh6 {[%emt 0:00:30]} d5 {[%emt 0:01:30]} 42. Rg6 {[%emt 0:00:30]} Kf5 {[%emt 0:00:30]} 43. Rd6 {[%emt 0:01:30]} d4 {[%emt 0:00:30]} 44. Kg2 {[%emt 0:00:30]} Ke4 {[%emt 0:01:30]} 45. Kf2 {[%emt 0:02:30]} d3 {[%emt 0:02:30]} 46. Ke1 {[%emt 0:01:30]} a5 {[%emt 0:00:30]} 47. Kd2 {[%emt 0:01:30]} a4 {[%emt 0:00:30]} 48. Bg8 {[%emt 0:06:30]} Rb2+ {[%emt 0:01:30]} 49. Kd1 {[%emt 0:00:30]} b5 {[%emt 0:00:30]} 50. Bh7+ {[%emt 0:00:30]} Ke5 {[%emt 0:00:30]} 51. Rxd3 {[%emt 0:00:30]} Rxa2 {[%emt 0:00:00]} 52. Re3+ {[%emt 0:00:00]} Kd4 {[%emt 0:06:00]} 53. Re4+ {[%emt 0:01:00]} Kc3 {[%emt 0:00:30]} 54. Re3+ {[%emt 0:00:00]} Kb2 {[%emt 0:05:30]} 55. Ke2 {[%emt 0:01:00]} b4 {[%emt 0:01:30]} 56. Kf3 {[%emt 0:00:30]} Ra3 {[%emt 0:01:30]} 57. Bd3 {[%emt 0:01:30]} Rc3 {[%emt 0:04:30]} 58. Re2+ {[%emt 0:00:30]} Kb3 {[%emt 0:00:30]} 59. Ke4 {[%emt 0:01:30]} a3 {[%emt 0:00:30]} 60. Bb1 {[%emt 0:00:00]} Rxh3 {[%emt 0:00:00]} 61. Ba2+ {[%emt 0:01:00]} Kc3 {[%emt 0:01:00]} 62. Rg2 {[%emt 0:00:30]} b3 {[%emt 0:00:30]} 63. Bb1 {[%emt 0:01:30]} Rh1 {[%emt 0:00:00]} 64. Rg3+ {[%emt 0:00:30]} Kb4 {[%emt 0:00:00]} 65. Bd3 {[%emt 0:01:30]} a2 {[%emt 0:00:30]} 66. Rxg5 {[%emt 0:00:00]} a1=Q {[%emt 0:00:30]} 67. Rb5+ {[%emt 0:00:00]} Kc3 {[%emt 0:00:00]} 68. Rc5+ {[%emt 0:00:30]} Kb2 {[%emt 0:00:00]} 0-1

[Event "Turkish Youth Championship 2024"]
[Site "Samsun"]
[Date "2024.05.18"]
[Round "1"]
[White "Bakirci, Hazar"]
[Black "Dogan, Umut Anil"]
[Result "0-1"]
[ECO "A44"]
[WhiteElo "1434"]
[BlackElo "1959"]
[Annotator "RC"]
[PlyCount "98"]
[EventDate "2024.05.18"]
[EventType "swiss"]
[EventCountry "TUR"]
[SourceTitle "playchess.com"]
[Source "ChessBase"]
[SourceQuality "1"]
[TimeControl "5400+30"]

1. d4 {[%emt 0:01:00]} c5 {[%emt 0:01:00]} 2. d5 {[%emt 0:00:00]} e5 {[%emt 0:00:30]} 3. e4 {[%emt 0:00:00]} d6 {[%emt 0:00:30]} 4. Nf3 {[%emt 0:00:30]} Nf6 {[%emt 0:00:30]} 5. Bd3 {[%emt 0:02:30]} Be7 {[%emt 0:00:30]} 6. O-O {[%emt 0:00:30]} c4 {[%emt 0:00:30]} 7. Bxc4 {[%emt 0:02:30]} Nxe4 {[%emt 0:02:30]} 8. Re1 {[%emt 0:01:30]} f5 {[%emt 0:01:30]} 9. Nbd2 {[%emt 0:02:30]} Nxd2 {[%emt 0:02:30]} 10. Bxd2 {[%emt 0:00:30]} Nd7 {[%emt 0:00:30]} 11. Bb5 {[%emt 0:02:30]} O-O {[%emt 0:01:30]} 12. Bxd7 {[%emt 0:01:30]} Bxd7 {[%emt 0:00:30]} 13. c4 {[%emt 0:00:30]} Be8 {[%emt 0:00:00]} 14. Qb3 {[%emt 0:04:30]} Rb8 {[%emt 0:02:00]} 15. Re3 {[%emt 0:04:30]} f4 {[%emt 0:00:30]} 16. Re4 {[%emt 0:00:30]} Bg6 {[%emt 0:01:30]} 17. Re2 {[%emt 0:02:30]} b6 {[%emt 0:00:00]} 18. Rae1 {[%emt 0:00:30]} Bf6 {[%emt 0:01:00]} 19. Bb4 {[%emt 0:01:30]} e4 {[%emt 0:01:30]} 20. Nd2 {[%emt 0:01:30]} a5 {[%emt 0:01:30]} 21. Bc3 {[%emt 0:02:30]} Bxc3 {[%emt 0:00:00]} 22. Qxc3 {[%emt 0:00:30]} f3 {[%emt 0:00:00]} 23. Re3 {[%emt 0:00:30]} Qg5 {[%emt 0:01:30]} 24. g3 {[%emt 0:01:30]} Qh5 {[%emt 0:00:30]} 25. h4 {[%emt 0:05:30]} Qg4 {[%emt 0:00:30]} 26. Rxe4 {[%emt 0:07:30]} Bxe4 {[%emt 0:00:30]} 27. Rxe4 {[%emt 0:00:00]} Qg6 {[%emt 0:02:30]} 28. Re6 {[%emt 0:01:00]} Qf5 {[%emt 0:00:30]} 29. Rxd6 {[%emt 0:01:30]} Rbe8 {[%emt 0:00:00]} 30. Re6 {[%emt 0:02:30]} Rxe6 {[%emt 0:01:00]} 31. dxe6 {[%emt 0:00:30]} Qxe6 {[%emt 0:00:30]} 32. Nxf3 {[%emt 0:00:00]} Qe2 {[%emt 0:00:30]} 33. Kg2 {[%emt 0:01:00]} Rf6 {[%emt 0:01:30]} 34. a3 {[%emt 0:04:30]} a4 {[%emt 0:00:30]} 35. Qe3 {[%emt 0:01:30]} Qxc4 {[%emt 0:00:30]} 36. Ne5 {[%emt 0:02:30]} Qd5+ {[%emt 0:00:30]} 37. Kf1 {[%emt 0:00:30]} Re6 {[%emt 0:02:30]} 38. f4 {[%emt 0:00:30]} Qd1+ {[%emt 0:00:30]} 39. Kf2 {[%emt 0:01:30]} Rd6 {[%emt 0:01:30]} 40. Nf3 {[%emt 0:05:30]} Qc2+ {[%emt 0:01:30]} 41. Kg1 {[%emt 0:01:30]} Rd1+ {[%emt 0:01:30]} 42. Ne1 {[%emt 0:00:30]} Qc5 {[%emt 0:00:30]} 43. Qxc5 {[%emt 0:02:30]} bxc5 {[%emt 0:00:30]} 44. Kf2 {[%emt 0:00:30]} Rd2+ {[%emt 0:00:00]} 45. Kf3 {[%emt 0:00:30]} Rxb2 {[%emt 0:00:00]} 46. Nd3 {[%emt 0:03:30]} Rb3 {[%emt 0:00:30]} 47. Ke4 {[%emt 0:00:30]} c4 {[%emt 0:00:30]} 48. Nc5 {[%emt 0:00:30]} Rxg3 {[%emt 0:00:30]} 49. Nxa4 {[%emt 0:00:00]} c3 {[%emt 0:00:00]} 0-1